fUSD/lending_fUSD_20240627
["ID","MTS","AMOUNT","RATE_DAILY","PERIOD"]
[330465695,1719453042497,-627.71059959,0.00019178,2]
[330465696,1719453042507,-627.71059959,0.00019178,2]
[330465697,1719453042516,-627.71059959,0.00019178,2]
[330465698,1719453042525,-627.71059959,0.00019178,2]
[330465699,1719453042535,-627.71059959,0.00019178,2]
[330465700,1719453042544,-627.71059959,0.00019178,2]
[330465701,1719453042554,-627.71059959,0.00019178,2]
[330465702,1719453042564,-627.71059959,0.00019178,2]
[330465703,1719453042574,-627.71059959,0.00019178,2]
[330465704,1719453042583,-627.71059959,0.00019178,2]
[330465705,1719453042593,-627.71059959,0.00019178,2]
[330465706,1719453042602,-627.71059959,0.00019178,2]
[330465707,1719453042612,-627.71059959,0.00019178,2]
[330465708,1719453042621,-627.71059959,0.00019178,2]
[330465709,1719453042631,-627.71059959,0.00019178,2]
[330465710,1719453042639,-627.71059959,0.00019178,2]
[330465711,1719453042648,-627.71059959,0.00019178,2]
[330465712,1719453042657,-627.71059959,0.00019178,2]
[330465713,1719453042666,-627.71059959,0.00019178,2]
[330465715,1719453042676,-627.71059959,0.00019178,2]
[330465717,1719453042685,-627.71059959,0.00019178,2]
[330465718,1719453042696,-627.71059959,0.00019178,2]
[330465719,1719453042706,-627.71059959,0.00019178,2]
[330465720,1719453042716,-627.71059959,0.00019178,2]
[330465721,1719453042726,-627.71059959,0.00019178,2]
[330465722,1719453042737,-627.71059959,0.00019178,2]
[330465723,1719453042747,-627.71059959,0.00019178,2]
[330465724,1719453042756,-627.71059959,0.00019178,2]
[330465725,1719453042766,-627.71059959,0.00019178,2]
[330465726,1719453042776,-627.71059959,0.00019178,2]
[330465727,1719453042785,-627.71059959,0.00019178,2]
[330465728,1719453042794,-627.71059959,0.00019178,2]
[330465729,1719453042804,-627.71059959,0.00019178,2]
[330465730,1719453042813,-627.71059959,0.00019178,2]
[330465731,1719453042823,-307.69143846,0.00019178,2]
[330465732,1719453042832,-500.0,0.00019178,2]
[330465733,1719453042843,-500.0,0.00019178,2]
[330465734,1719453042853,-500.0,0.00019178,2]
[330465735,1719453042862,-500.0,0.00019178,2]
[330465736,1719453042872,-500.0,0.00019178,2]
[330465737,1719453042881,-500.0,0.00019178,2]
[330465738,1719453042890,-500.0,0.00019178,2]
[330465740,1719453042899,-500.0,0.00019178,2]
[330465741,1719453042914,-500.0,0.00019178,2]
[330465744,1719453042924,-500.0,0.00019178,2]
[330465745,1719453042933,-500.0,0.00019178,2]
[330465747,1719453042942,-500.0,0.00019178,2]
[330465749,1719453042951,-500.0,0.00019178,2]
[330465750,1719453042960,-500.0,0.00019178,2]
[330465751,1719453042970,-500.0,0.00019178,2]
[330465752,1719453042979,-500.0,0.00019178,2]
[330465753,1719453042988,-500.0,0.00019178,2]
[330465754,1719453042997,-500.0,0.00019178,2]
[330465755,1719453043006,-500.0,0.00019178,2]
[330465756,1719453043015,-286.43217325,0.00019178,2]
[330465757,1719453043024,-500.0,0.00019178,2]
[330465758,1719453043033,-500.0,0.00019178,2]
[330465759,1719453043043,-500.0,0.00019178,2]
[330465760,1719453043053,-500.0,0.00019178,2]
[330465761,1719453043063,-500.0,0.00019178,2]
[330465762,1719453043073,-500.0,0.00019178,2]
[330465763,1719453043082,-500.0,0.00019178,2]
[330465764,1719453043091,-350.0,0.00019178,2]
[330465765,1719453043101,-170.73323935,0.00019178,2]
[330465766,1719453043110,-1946.47019134,0.00019178,2]
[330465767,1719453043119,-499.99999999,0.00019178,2]
[330465768,1719453043129,-1946.47019134,0.00019178,2]
[330465769,1719453043138,-1946.47019134,0.00019178,2]
[330465770,1719453043148,-1946.47019134,0.00019178,2]
[330465771,1719453043157,-1946.47019134,0.00019178,2]
[330465772,1719453043166,-1946.47019134,0.00019178,2]
[330465773,1719453043176,-1946.47019134,0.00019178,2]
[330465774,1719453043185,-1946.47019134,0.00019178,2]
[330465775,1719453043194,-1946.47019134,0.00019178,2]
[330465776,1719453043203,-1946.47019134,0.00019178,2]
[330465777,1719453043213,-1946.47019134,0.00019178,2]
[330465778,1719453043222,-1946.47019134,0.00019178,2]
[330465779,1719453043232,-1946.47019134,0.00019178,2]
[330465780,1719453043241,-1946.47019134,0.00019178,2]
[330465781,1719453043250,-1946.47019134,0.00019178,2]
[330465782,1719453043260,-1946.47019134,0.00019178,2]
[330465783,1719453043269,-1946.47019134,0.00019178,2]
[330465784,1719453043279,-1946.47019134,0.00019178,2]
[330465785,1719453043289,-1946.47019134,0.00019178,2]
[330465786,1719453043298,-1946.47019134,0.00019178,2]
[330465787,1719453043308,-1946.47019134,0.00019178,2]
[330465788,1719453043320,-1946.47019134,0.00019178,2]
[330465789,1719453043329,-1946.47019134,0.00019178,2]
[330465790,1719453043338,-1946.47019134,0.00019178,2]
[330465791,1719453043349,-1946.47019134,0.00019178,2]
[330465792,1719453043360,-1946.47019131,0.00019178,2]
[330465793,1719453043370,-1946.47019131,0.00019178,2]
[330465794,1719453043380,-200.0,0.00019178,2]
[330465795,1719453043389,-200.0,0.00019178,2]
[330465796,1719453043399,-200.0,0.00019178,2]
[330465797,1719453043409,-200.0,0.00019178,2]
[330465798,1719453043419,-200.0,0.00019178,2]
[330465799,1719453043428,-200.0,0.00019178,2]
[330465800,1719453043437,-182.0,0.00019178,2]
[330465801,1719453043447,-3152.1,0.00019178,2]
[330465802,1719453043456,-284.66,0.00019178,2]
[330465803,1719453043467,-250.0,0.00019178,2]
[330465804,1719453043477,-55000.0,0.00019178,2]
[330465805,1719453043486,-300.0,0.00019178,2]
[330465806,1719453043495,-300.0,0.00019178,2]
[330465807,1719453043504,-167.0,0.00019227,2]
[330465808,1719453043513,-835.0,0.00019233,2]
[330465809,1719453043523,-226.97665617,0.00019299,2]
[330465810,1719453043532,-650.0,0.0001942,2]
[330465811,1719453043542,-240.1,0.00019427,2]
[330465812,1719453043551,-560.12007,0.00019452,2]
[330465813,1719453043561,-2011.61872057,0.000195,5]
[330465814,1719453043571,-334.65,0.000195,2]
[330465815,1719453043580,-300.0,0.00019564,2]
[330465816,1719453043590,-3157.0,0.000196,3]
[330465817,1719453043599,-878.28047691,0.00019623,2]
[330465818,1719453043609,-25406.47187908,0.00019718,2]
[330465819,1719453043618,-301.92592688,0.00019724,2]
[330465820,1719453043627,-436.98137639,0.00019725,2]
[330465821,1719453043636,-1656.0,0.00019788,2]
[330465822,1719453043645,-360.0,0.00019788,2]
[330465823,1719453043655,-1273.0,0.00019788,2]
[330465824,1719453043663,-1830.0,0.00019788,2]
[330465825,1719453043673,-448.0,0.00019788,2]
[330465826,1719453043682,-150.0,0.00019788,2]
[330465827,1719453043691,-1304.0,0.00019788,2]
[330465828,1719453043700,-2414.0,0.00019788,2]
[330465829,1719453043709,-1985.0,0.00019788,2]
[330465830,1719453043718,-548.0,0.00019788,2]
[330465831,1719453043727,-3203.0,0.00019788,2]
[330465832,1719453043736,-5803.0,0.00019788,2]
[330465833,1719453043745,-5171.0,0.00019788,2]
[330465834,1719453043754,-1662.0,0.00019788,2]
[330465835,1719453043763,-1185.251,0.00019788,2]
[330465836,1719453043772,-291.0,0.00019788,2]
[330465837,1719453043781,-150.0,0.00019788,2]
[330465838,1719453043791,-150.0,0.00019788,2]
[330465839,1719453043800,-11333.742,0.00019788,2]
[330465840,1719453043809,-150.0,0.00019788,2]
[330465841,1719453043819,-150.0,0.00019788,2]
[330465842,1719453043828,-150.0,0.00019788,2]
[330465843,1719453043838,-167.0,0.00019842,2]
[330465844,1719453043847,-505.57816186,0.00019863,2]
[330465845,1719453043857,-34519.90707174,0.000199,2]
[330465846,1719453043867,-151.55009122,0.00019968,2]
[330465847,1719453043876,-334.01874444,0.00019997,2]
[330465848,1719453043886,-306.67527528,0.0002,2]
[330465849,1719453043895,-869.60527558,0.0002,2]
[330465850,1719453043906,-188.59166046,0.0002,2]
[330465851,1719453043918,-155.46833991,0.0002,2]
[330465852,1719453043928,-297.46620866,0.0002,2]
[330465853,1719453043938,-828.21381316,0.0002,2]
[330465854,1719453043947,-327.90570869,0.0002,2]
[330465855,1719453043956,-278.8784424,0.0002,2]
[330465856,1719453043966,-197.58359137,0.0002,2]
[330465857,1719453043975,-6762.52068381,0.0002,2]
[330465858,1719453043984,-1000.0,0.0002,2]
[330465859,1719453043996,-11754.0,0.0002,5]
[330465860,1719453044006,-560.12007,0.00020274,2]
[330465861,1719453044015,-156.89028221,0.0002038,2]
[330465862,1719453044025,-25406.47187908,0.00020445,2]
[330465863,1719453044034,-167.0,0.00020456,2]
[330465864,1719453044043,-181.0,0.0002054,2]
[330465865,1719453044052,-172.05,0.00020548,2]
[330465866,1719453044063,-20051.57,0.00020548,2]
[330465867,1719453044074,-220.739401,0.00020622,2]
[330465868,1719453044083,-250.021687,0.00020622,2]
[330465869,1719453044094,-190.428704,0.00020687,2]
[330465870,1719453044103,-878.28047691,0.00020762,2]
[330465871,1719453044112,-1421.30579045,0.000208,3]
[330465872,1719453044122,-155.253217,0.000209,2]
[330465873,1719453044131,-151.0,0.000209,2]
[330465874,1719453044141,-151.0,0.000209,2]
[330465875,1719453044150,-151.0,0.000209,2]
[330465876,1719453044159,-151.0,0.000209,2]
[330465877,1719453044169,-151.0,0.000209,2]
[330465878,1719453044179,-151.0,0.000209,2]
[330465879,1719453044188,-151.0,0.000209,2]
[330465880,1719453044197,-256.696257,0.000209,2]
[330465881,1719453044208,-256.696257,0.000209,2]
[330465882,1719453044218,-756.328377,0.000209,2]
[330465883,1719453044227,-151.551188,0.000209,2]
[330465884,1719453044236,-151.458969,0.000209,2]
[330465885,1719453044245,-756.328377,0.000209,2]
[330465886,1719453044254,-151.0,0.000209,2]
[330465887,1719453044266,-365.113114,0.000209,2]
[330465888,1719453044276,-151.0,0.000209,2]
[330465889,1719453044285,-365.113114,0.000209,2]
[330465890,1719453044295,-78477.2098068,0.000209,3]
[330465891,1719453044305,-2390.799644,0.000209,2]
[330465892,1719453044315,-151.449748,0.000209,2]
[330465893,1719453044324,-2390.799644,0.000209,2]
[330465894,1719453044333,-151.0,0.000209,2]
[330465895,1719453044342,-187.24762,0.000209,2]
[330465896,1719453044351,-151.0,0.000209,2]
[330465897,1719453044361,-187.24762,0.000209,2]
[330465898,1719453044370,-319.91546,0.000209,2]
[330465899,1719453044380,-423.9469,0.000209,2]
[330465900,1719453044389,-319.91546,0.000209,2]
[330465901,1719453044398,-423.9469,0.000209,2]
[330465902,1719453044408,-151.0,0.000209,2]
[330465903,1719453044417,-1706.660612,0.000209,2]
[330465904,1719453044427,-1706.660612,0.000209,2]
[330465905,1719453044436,-828.978908,0.000209,2]
[330465906,1719453044445,-816.668293,0.000209,2]
[330465907,1719453044454,-828.978908,0.000209,2]
[330465908,1719453044464,-816.668293,0.000209,2]
[330465909,1719453044473,-151.0,0.000209,2]
[330465910,1719453044483,-151.0,0.000209,2]
[330465911,1719453044493,-151.0,0.000209,2]
[330465912,1719453044503,-1221.740894,0.000209,2]
[330465913,1719453044512,-152.134443,0.000209,2]
[330465914,1719453044522,-1221.740894,0.000209,2]
[330465915,1719453044531,-178.54638315,0.000209,2]
[330465916,1719453044540,-305.0713416,0.00021,2]
[330465917,1719453044550,-502.17063786,0.00021,2]
[330465918,1719453044560,-202.785526,0.00021,2]
[330465919,1719453044571,-1000.0,0.00021014,2]
[330465920,1719453044584,-41505.34723943,0.0002107,2]
[330465921,1719453044594,-750.965141,0.0002107,2]
[330465922,1719453044604,-750.965141,0.0002107,2]
[330465923,1719453044615,-153.752928,0.0002107,2]
[330465924,1719453044625,-226.091554,0.0002107,2]
[330465925,1719453044635,-226.091554,0.0002107,2]
[330465926,1719453044644,-151.0,0.0002107,2]
[330465927,1719453044655,-199.31945,0.0002107,2]
[330465928,1719453044665,-199.31945,0.0002107,2]
[330465929,1719453044676,-199.979534,0.0002107,2]
[330465930,1719453044685,-199.979534,0.0002107,2]
[330465931,1719453044695,-151.0,0.0002107,2]
[330465932,1719453044704,-151.0,0.0002107,2]
[330465933,1719453044712,-1169.776551,0.0002107,2]
[330465934,1719453044721,-151.0,0.0002107,2]
[330465935,1719453044731,-1169.776551,0.0002107,2]
[330465936,1719453044740,-868.358058,0.0002107,2]
[330465937,1719453044750,-895.328127,0.0002107,2]
[330465938,1719453044759,-868.358058,0.0002107,2]
[330465939,1719453044768,-895.328127,0.0002107,2]
[330465940,1719453044778,-151.252229,0.0002107,2]
[330465941,1719453044788,-237.606872,0.0002107,2]
[330465942,1719453044797,-237.606872,0.0002107,2]
[330465943,1719453044807,-236.636977,0.0002107,2]
[330465944,1719453044819,-167.0,0.00021071,2]
[330465945,1719453044828,-560.12007,0.00021096,2]
[330465946,1719453044838,-1561291.34194812,0.000211,2]
[330465947,1719453044847,-151.0,0.000211,2]
[330465948,1719453044856,-151.0,0.000211,2]
[330465949,1719453044866,-151.0,0.000211,2]
[330465950,1719453044876,-151.0,0.000211,2]
[330465951,1719453044885,-151.0,0.000211,2]
[330465952,1719453044894,-151.0,0.000211,2]
[330465953,1719453044903,-151.0,0.000211,2]
[330465954,1719453044916,-151.0,0.000211,2]
[330465955,1719453044925,-151.0,0.000211,2]
[330465956,1719453044934,-151.0,0.000211,2]
[330465957,1719453044944,-151.0,0.000211,2]
[330465958,1719453044954,-151.786115,0.000211,2]
[330465959,1719453044963,-151.0,0.000211,2]
[330465960,1719453044973,-151.0,0.000211,2]
[330465961,1719453044982,-151.0,0.000211,2]
[330465962,1719453044992,-151.0,0.000211,2]
[330465963,1719453045003,-151.0,0.000211,2]
[330465964,1719453045013,-151.0,0.000211,2]
[330465965,1719453045023,-364.415417,0.000211,2]
[330465966,1719453045033,-1019.207893,0.000211,2]
[330465967,1719453045044,-364.415417,0.000211,2]
[330465968,1719453045054,-1019.207893,0.000211,2]
[330465969,1719453045065,-151.0,0.000211,2]
[330465970,1719453045074,-151.0,0.000211,2]
[330465971,1719453045084,-222.831935,0.000211,2]
[330465972,1719453045094,-222.831935,0.000211,2]
[330465973,1719453045104,-238.994398,0.000211,2]
[330465974,1719453045114,-238.994398,0.000211,2]
[330465975,1719453045123,-151.0,0.000211,2]
[330465976,1719453045133,-151.0,0.000211,2]
[330465977,1719453045143,-151.0,0.000211,2]
[330465978,1719453045152,-151.0,0.000211,2]
[330465979,1719453045162,-151.0,0.000211,2]
[330465980,1719453045171,-152.251604,0.000211,2]
[330465981,1719453045181,-151.201203,0.000211,2]
[330465982,1719453045190,-157.027653,0.000211,2]
[330465983,1719453045200,-205.687078,0.000211,2]
[330465984,1719453045209,-151.0,0.000211,2]
[330465985,1719453045218,-205.687078,0.000211,2]
[330465986,1719453045227,-151.0,0.000211,2]
[330465987,1719453045237,-869.925072,0.000211,2]
[330465988,1719453045247,-869.925072,0.000211,2]
[330465989,1719453045256,-151.0,0.000211,2]
[330465990,1719453045266,-151.0,0.000211,2]
[330465991,1719453045276,-151.0,0.000211,2]
[330465992,1719453045285,-151.0,0.000211,2]
[330465993,1719453045295,-151.0,0.000211,2]
[330465994,1719453045304,-151.0,0.000211,2]
[330465995,1719453045315,-151.0,0.000211,2]
[330465996,1719453045324,-151.0,0.000211,2]
[330465997,1719453045334,-213.862666,0.000211,2]
[330465998,1719453045343,-978.780774,0.000211,2]
[330465999,1719453045353,-750.965141,0.000211,2]
[330466000,1719453045363,-978.780774,0.000211,2]
[330466001,1719453045372,-750.965141,0.000211,2]
[330466002,1719453045382,-226.091554,0.000211,2]
[330466003,1719453045391,-226.091554,0.000211,2]
[330466004,1719453045400,-155.970061,0.000211,2]
[330466005,1719453045410,-199.31945,0.000211,2]
[330466006,1719453045419,-151.0,0.000211,2]
[330466007,1719453045429,-199.31945,0.000211,2]
[330466008,1719453045438,-151.0,0.000211,2]
[330466009,1719453045447,-151.0,0.000211,2]
[330466010,1719453045457,-151.0,0.000211,2]
[330466011,1719453045466,-151.0,0.000211,2]
[330466012,1719453045476,-199.979534,0.000211,2]
[330466013,1719453045486,-199.979534,0.000211,2]
[330466014,1719453045495,-151.0,0.000211,2]
[330466015,1719453045505,-151.0,0.000211,2]
[330466016,1719453045515,-256.696257,0.000211,2]
[330466017,1719453045524,-256.696257,0.000211,2]
[330466018,1719453045533,-756.328377,0.000211,2]
[330466019,1719453045542,-756.328377,0.000211,2]
[330466020,1719453045552,-151.0,0.000211,2]
[330466021,1719453045562,-365.113114,0.000211,2]
[330466022,1719453045573,-159.728959,0.000211,2]
[330466023,1719453045585,-365.113114,0.000211,2]
[330466024,1719453045596,-2390.799644,0.000211,2]
[330466025,1719453045612,-2390.799644,0.000211,2]
[330466026,1719453045628,-151.0,0.000211,2]
[330466027,1719453045638,-187.24762,0.000211,2]
[330466028,1719453045648,-151.0,0.000211,2]
[330466029,1719453045658,-187.24762,0.000211,2]
[330466030,1719453045667,-319.91546,0.000211,2]
[330466031,1719453045678,-423.9469,0.000211,2]
[330466032,1719453045687,-319.91546,0.000211,2]
[330466033,1719453045697,-423.9469,0.000211,2]
[330466034,1719453045707,-258.310536,0.000211,2]
[330466035,1719453045717,-151.0,0.000211,2]
[330466036,1719453045727,-1706.660612,0.000211,2]
[330466037,1719453045736,-211.448364,0.000211,2]
[330466038,1719453045746,-1706.660612,0.000211,2]
[330466039,1719453045756,-1169.776551,0.000211,2]
[330466040,1719453045766,-151.0,0.000211,2]
[330466041,1719453045776,-828.978908,0.000211,2]
[330466042,1719453045786,-1169.776551,0.000211,2]
[330466043,1719453045796,-816.668293,0.000211,2]
[330466044,1719453045805,-828.978908,0.000211,2]
[330466045,1719453045815,-816.668293,0.000211,2]
[330466046,1719453045825,-151.0,0.000211,2]
[330466047,1719453045835,-868.358058,0.000211,2]
[330466048,1719453045845,-895.328127,0.000211,2]
[330466049,1719453045854,-151.0,0.000211,2]
[330466050,1719453045864,-895.328127,0.000211,2]
[330466051,1719453045873,-868.358058,0.000211,2]
[330466052,1719453045883,-151.0,0.000211,2]
[330466053,1719453045893,-1221.740894,0.000211,2]
[330466054,1719453045903,-237.606872,0.000211,2]
[330466055,1719453045917,-1221.740894,0.000211,2]
[330466060,1719453045926,-237.606872,0.000211,2]
[330466061,1719453046081,-236.636977,0.000211,2]
[330466062,1719453046092,-25406.47187908,0.00021173,2]
[330466063,1719453046103,-1000.0,0.000212,2]
[330466064,1719453046114,-261369.0,0.00021352,2]
[330466065,1719453046124,-190.04871166,0.000214,2]
[330466066,1719453046134,-1032.241461,0.0002156,2]
[330466067,1719453046144,-6132.13315375,0.0002156,2]
[330466068,1719453046154,-240.1,0.00021585,2]
[330466069,1719453046164,-406.74,0.00021644,2]
[330466070,1719453046174,-158.15,0.00021644,2]
[330466071,1719453046185,-1274.29696335,0.0002168,2]
[330466072,1719453046195,-1274.29696335,0.0002168,2]
[330466073,1719453046205,-167.0,0.00021685,2]
[330466074,1719453046215,-2100.0,0.00021695,2]
[330466075,1719453046226,-300.0,0.00021695,2]
[330466076,1719453046235,-5000.0,0.00021764,2]
[330466077,1719453046245,-334.65,0.00021764,2]
[330466078,1719453046255,-2017.10975651,0.00021773,2]
[330466079,1719453046265,-150.0,0.00021779,2]
[330466080,1719453046275,-2230.84709,0.0002178,2]
[330466081,1719453046285,-10439.0,0.000218,4]
[330466082,1719453046295,-2348.6096578,0.000218,2]
[330466083,1719453046305,-500.0,0.00021824,2]
[330466084,1719453046315,-200.0,0.00021824,2]
[330466085,1719453046325,-1516.6293214,0.0002186,2]
[330466086,1719453046334,-169.70972348,0.00021877,2]
[330466087,1719453046344,-500.0,0.0002189,2]
[330466088,1719453046354,-500.0,0.0002189,2]
[330466089,1719453046364,-500.0,0.0002189,2]
[330466090,1719453046374,-500.0,0.0002189,2]
[330466091,1719453046384,-500.0,0.0002189,2]
[330466092,1719453046394,-500.0,0.0002189,2]
[330466093,1719453046404,-500.0,0.0002189,2]
[330466094,1719453046413,-500.0,0.0002189,2]
[330466095,1719453046423,-500.0,0.0002189,2]
[330466096,1719453046433,-500.0,0.0002189,2]
[330466097,1719453046444,-500.0,0.0002189,2]
[330466098,1719453046453,-500.0,0.0002189,2]
[330466099,1719453046463,-500.0,0.0002189,2]
[330466100,1719453046473,-500.0,0.0002189,2]
[330466101,1719453046482,-500.0,0.0002189,2]
[330466102,1719453046491,-500.0,0.0002189,2]
[330466103,1719453046502,-500.0,0.0002189,2]
[330466104,1719453046511,-500.0,0.0002189,2]
[330466105,1719453046521,-500.0,0.0002189,2]
[330466106,1719453046531,-500.0,0.0002189,2]
[330466107,1719453046540,-500.0,0.0002189,2]
[330466108,1719453046550,-500.0,0.0002189,2]
[330466109,1719453046560,-500.0,0.0002189,2]
[330466110,1719453046571,-500.0,0.0002189,2]
[330466111,1719453046581,-500.0,0.0002189,2]
[330466112,1719453046592,-500.0,0.0002189,2]
[330466113,1719453046601,-500.0,0.0002189,2]
[330466114,1719453046611,-500.0,0.0002189,2]
[330466115,1719453046620,-500.0,0.0002189,2]
[330466116,1719453046630,-500.0,0.0002189,2]
[330466117,1719453046638,-500.0,0.0002189,2]
[330466118,1719453046648,-500.0,0.0002189,2]
[330466119,1719453046657,-500.0,0.0002189,2]
[330466120,1719453046666,-500.0,0.0002189,2]
[330466121,1719453046676,-500.0,0.0002189,2]
[330466122,1719453046686,-500.0,0.0002189,2]
[330466123,1719453046695,-500.0,0.0002189,2]
[330466124,1719453046704,-500.0,0.0002189,2]
[330466125,1719453046713,-500.0,0.0002189,2]
[330466126,1719453046723,-500.0,0.0002189,2]
[330466127,1719453046733,-500.0,0.0002189,2]
[330466128,1719453046743,-500.0,0.0002189,2]
[330466129,1719453046752,-500.0,0.0002189,2]
[330466130,1719453046762,-500.0,0.0002189,2]
[330466131,1719453046771,-500.0,0.0002189,2]
[330466132,1719453046780,-500.0,0.0002189,2]
[330466133,1719453046789,-500.0,0.0002189,2]
[330466134,1719453046799,-500.0,0.0002189,2]
[330466135,1719453046809,-500.0,0.0002189,2]
[330466136,1719453046819,-500.0,0.0002189,2]
[330466137,1719453046828,-500.0,0.0002189,2]
[330466138,1719453046838,-500.0,0.0002189,2]
[330466139,1719453046847,-500.0,0.0002189,2]
[330466140,1719453046856,-500.0,0.0002189,2]
[330466141,1719453046866,-500.0,0.0002189,2]
[330466142,1719453046875,-500.0,0.0002189,2]
[330466143,1719453046885,-500.0,0.0002189,2]
[330466144,1719453046894,-300.0,0.00021899,2]
[330466145,1719453046904,-50125.9048,0.000219,2]
[330466146,1719453046913,-500.0,0.000219,2]
[330466147,1719453046923,-811.14141852,0.000219,2]
[330466148,1719453046932,-156.89028221,0.000219,2]
[330466149,1719453046946,-750.965141,0.000219,2]
[330466150,1719453046955,-750.965141,0.000219,2]
[330466151,1719453046965,-226.091554,0.000219,2]
[330466152,1719453046974,-226.091554,0.000219,2]
[330466153,1719453046984,-199.31945,0.000219,2]
[330466154,1719453046994,-158.302034,0.000219,2]
[330466155,1719453047004,-199.31945,0.000219,2]
[330466156,1719453047014,-151.0,0.000219,2]
[330466157,1719453047024,-151.0,0.000219,2]
[330466158,1719453047034,-152.286269,0.000219,2]
[330466159,1719453047044,-151.0,0.000219,2]
[330466160,1719453047054,-199.979534,0.000219,2]
[330466161,1719453047064,-199.979534,0.000219,2]
[330466162,1719453047074,-151.0,0.000219,2]
[330466163,1719453047083,-162.307979,0.000219,2]
[330466164,1719453047092,-256.696257,0.000219,2]
[330466165,1719453047102,-166.38585807,0.000219,2]
[330466166,1719453047111,-256.696257,0.000219,2]
[330466167,1719453047121,-756.328377,0.000219,2]
[330466168,1719453047130,-756.328377,0.000219,2]
[330466169,1719453047139,-365.113114,0.000219,2]
[330466170,1719453047149,-365.113114,0.000219,2]
[330466171,1719453047158,-2390.799644,0.000219,2]
[330466172,1719453047168,-2390.799644,0.000219,2]
[330466173,1719453047178,-151.0,0.000219,2]
[330466174,1719453047187,-187.24762,0.000219,2]
[330466175,1719453047196,-151.0,0.000219,2]
[330466176,1719453047205,-187.24762,0.000219,2]
[330466177,1719453047215,-25406.47187908,0.000219,2]
[330466178,1719453047224,-319.91546,0.000219,2]
[330466179,1719453047234,-423.9469,0.000219,2]
[330466180,1719453047243,-319.91546,0.000219,2]
[330466181,1719453047253,-423.9469,0.000219,2]
[330466182,1719453047262,-151.0,0.000219,2]
[330466183,1719453047271,-1706.660612,0.000219,2]
[330466184,1719453047281,-1706.660612,0.000219,2]
[330466185,1719453047291,-1636.49382931,0.000219,2]
[330466186,1719453047301,-208.25661286,0.000219,2]
[330466187,1719453047311,-1169.776551,0.000219,2]
[330466188,1719453047321,-151.0,0.000219,2]
[330466189,1719453047331,-828.978908,0.000219,2]
[330466190,1719453047341,-1169.776551,0.000219,2]
[330466191,1719453047351,-816.668293,0.000219,2]
[330466192,1719453047361,-828.978908,0.000219,2]
[330466193,1719453047371,-816.668293,0.000219,2]
[330466194,1719453047380,-151.0,0.000219,2]
[330466195,1719453047390,-868.358058,0.000219,2]
[330466196,1719453047399,-895.328127,0.000219,2]
[330466197,1719453047410,-151.0,0.000219,2]
[330466198,1719453047422,-895.328127,0.000219,2]
[330466199,1719453047433,-868.358058,0.000219,2]
[330466200,1719453047443,-287.19561717,0.000219,2]
[330466201,1719453047453,-151.0,0.000219,2]
[330466202,1719453047463,-1221.740894,0.000219,2]
[330466203,1719453047472,-237.606872,0.000219,2]
[330466204,1719453047483,-1221.740894,0.000219,2]
[330466205,1719453047494,-237.606872,0.000219,2]